Cogmind - Beta 16 @@@ ROGUE MODE // 2025.10.28 @ 19:44:01 Player: Red_Zig Result: Destroyed by G-73 Enforcer with Phase Gun Performance ------------- Evolutions (5) 2500 Regions Visited (16) 3200 Robots Destroyed (98) 490 Value Destroyed (3242) 3242 Prototype IDs (27) 540 Alien Tech Used (2) 400 Bonus (600) 600 TOTAL SCORE: 10972 Bonus ------- Aligned with FarCom 300 Met Zhirov 300 Cogmind --------- Core Integrity 0/1000 Matter 290/300 Energy 93/100 System Corruption 0% Temperature Cool (9) Movement Core (50) Location -4/Proximity Caves Parts ------- > --- POWER (2) -------- (None) > --- PROPULSION (5) --- (None) > --- UTILITY (7) ------ Improved Melee Analysis Suite > --- WEAPON (3) ------- (None) > --- INVENTORY (5) ---- Tactical Coordination Suite Heart of Steel Peak State ------------ > --- POWER ------------ Micro Fission Core Micro Fission Core > --- PROPULSION ------- Improved Carbon-fiber Leg Improved Carbon-fiber Leg Improved Carbon-fiber Leg Improved Carbon-fiber Leg Cooled Gravmag System > --- UTILITY ---------- Advanced Cryofiber Web Large Storage Unit Core Analyzer Jamming Amplifier Experimental Utility Shielding Hardened Medium Armor Plating Advanced System Restoration Module > --- WEAPON ----------- Wave Gun Heavy Ion Cannon Advanced Plasma Cannon > --- INVENTORY -------- Micro Fission Core Armored Huge Wheel Improved Heat Sink Tactical Coordination Suite Core Analyzer Dynamic Insulation System Heart of Steel Transdimensional Reconstructor Heavy Rocket Launcher Plasma Cutter RU-N14's Throwing Claymores Phasing Sabre [Rating: 91] Favorites ----------- Power Reinforced Deuterium Engine Engine Reinforced Deuterium Engine Power Core Micro Fission Core Propulsion Improved Carbon-fiber Leg Treads Light Treads Leg Improved Carbon-fiber Leg Wheel Armored Huge Wheel Hover Unit Cooled Gravmag System Flight Unit Flight Unit Utility Scrap Suit Device Scrap Suit Storage Large Storage Unit Processor Core Analyzer Protection Hardened Medium Armor Plating Weapon AWS/Thermal Energy Gun AWS/Thermal Energy Cannon Heavy Ion Cannon Ballistic Gun Light Assault Rifle Ballistic Cannon Magnetic Acceleration Cannon Launcher Heavy Rocket Launcher Special Weapon RU-N14's Throwing Claymores Slashing Weapon Phasing Sabre Build | -11 -10 -10 -10 -9 -8 -7 -7 -7 -7 -6 -6 -5 -5 -5 -5 -4 ------- Run | Yrd Mat Min Exi Min Mat Fac Low Low Zio Pro Fac Fac Upp Upp Zhi Pro Slots Evolved 10 | . . . . . 4 2 . . . . 2 2 . . . . Power 1 | . . . . . . . . . . . . 1 . . . . Propulsion 3 | . . . . . 1 . . . . . 1 1 . . . . Utility 5 | . . . . . 2 2 . . . . 1 . . . . . Weapon 1 | . . . . . 1 . . . . . . . . . . . Parts Attached 67 | 6 7 5 . 1 10 5 2 . 1 2 7 12 . 1 4 4 Power 10 | 1 1 1 . . 1 . 1 . . 1 1 3 . . . . Engine 5 | 1 1 1 . . 1 . 1 . . . . . . . . . Core 5 | . . . . . . . . . . 1 1 3 . . . . Reactor . | . . . . . . . . . . . . . . . . . Propulsion 23 | 2 . 3 . . 5 . . . . 1 3 7 . . 1 1 Treads 3 | . . . . . 2 . . . . . 1 . . . . . Leg 16 | 2 . 1 . . 3 . . . . 1 2 7 . . . . Wheel 1 | . . . . . . . . . . . . . . . . 1 Hover 1 | . . . . . . . . . . . . . . . 1 . Flight 2 | . . 2 . . . . . . . . . . . . . . Utility 19 | 1 3 1 . . 3 4 1 . . . 1 . . 1 2 2 Device 10 | 1 1 1 . . 2 1 1 . . . . . . 1 1 1 Storage 1 | . . . . . . 1 . . . . . . . . . . Processor 6 | . 2 . . . 1 1 . . . . 1 . . . . 1 Hackware . | . . . . . . . . . . . . . . . . . Protection 2 | . . . . . . 1 . . . . . . . . 1 . Artifact . | . . . . . . . . . . . . . . . . . Weapon 15 | 2 3 . . 1 1 1 . . 1 . 2 2 . . 1 1 Energy Gun 4 | 1 2 . . 1 . . . . . . . . . . . . Energy Cannon 4 | . . . . . 1 1 . . . . . 1 . . 1 . Ballistic Gun 2 | 1 1 . . . . . . . . . . . . . . . Ballistic Cannon 1 | . . . . . . . . . . . 1 . . . . . Launcher 1 | . . . . . . . . . . . . 1 . . . . Special Weapon 2 | . . . . . . . . . 1 . . . . . . 1 Impact Weapon . | . . . . . . . . . . . . . . . . . Slashing Weapon 1 | . . . . . . . . . . . 1 . . . . . Piercing Weapon . | . . . . . . . . . . . . . . . . . Special Melee Weapon . | . . . . . . . . . . . . . . . . . Unidentified Prototypes 6 | . . . . . . . . . 1 . . . . . 4 1 Parts Lost 27 | . 2 4 . . 1 . . . . 1 . 3 2 1 . 13 Power 4 | . . . . . . . . . . 1 . 1 . . . 2 Propulsion 14 | . . 3 . . 1 . . . . . . 2 1 1 . 6 Utility 6 | . 1 1 . . . . . . . . . . 1 . . 3 Weapon 3 | . 1 . . . . . . . . . . . . . . 2 Highest Loss Streak 8 | . 1 3 . . 1 . . . . 1 . 3 1 1 . 8 To Critical Strikes . | . . . . . . . . . . . . . . . . . Average Backups 8 | . . 4 4 4 4 8 11 12 11 12 11 10 10 9 10 7 Power . | . . 1 . . . 1 1 2 1 1 1 . 1 1 1 . Propulsion . | . . . . . . . 1 1 . 1 1 1 2 1 1 . Utility 2 | . . . 1 1 1 2 4 5 3 4 4 3 2 2 2 2 Weapon 3 | . . 2 3 3 2 4 5 3 3 4 3 3 3 3 3 1 Tool/Special . | . . . . . . . . . . . . . . . . . Unused Backups 10 | . . . 1 . 1 . . 1 3 . . . . . . 4 Power . | . . . . . . . . . . . . . . . . . Propulsion . | . . . . . . . . . . . . . . . . . Utility 4 | . . . 1 . . . . . 1 . . . . . . 2 Weapon 4 | . . . . . 1 . . 1 2 . . . . . . . Tool/Special 2 | . . . . . . . . . . . . . . . . 2 Average Slot Usage (%) 79 | . 92 52 62 70 74 82 84 79 83 81 79 87 91 96 96 42 Engine 7 | . 14 14 14 14 9 7 7 7 7 5 5 7 . . . . Core 1 | . . . . . . . . . . 1 . 3 11 11 11 5 Leg 21 | . 27 5 14 14 20 23 23 23 23 23 22 27 26 26 23 6 Flight 1 | . . 12 14 14 2 . . . . . . . . . . . Device 13 | . 12 4 14 14 16 14 15 15 15 15 13 11 15 15 14 7 Storage 4 | . . . . . . 6 7 7 7 7 6 5 5 5 5 2 Processor 12 | . 10 10 . . 7 14 15 15 15 15 19 16 11 11 11 6 Energy Gun 7 | . 20 4 5 13 9 7 7 7 7 7 6 5 5 5 5 . Energy Cannon 2 | . . . . . 6 7 7 2 . . . 1 11 11 9 3 Special Weapon 1 | . . . . . . . . . 6 5 . . . . . . Peak Build Rating 91 | 6 10 11 15 27 48 56 59 61 65 68 78 84 80 80 88 91 Average Rating 52 | 4 7 5 12 26 41 55 57 58 64 64 69 79 76 77 81 39 On Entrance 47 | . 6 9 11 15 27 48 56 59 57 65 59 75 80 71 76 87 Avg Prop Armor Cover (%) 3 | . . 3 3 3 4 4 . . . . 8 . . . 1 2 Naked Turns 152 | . . . . . . . . . . . . . . . . 152 Heaviest Build 66 | 7 12 11 10 15 27 49 57 57 57 57 57 59 63 66 66 65 Greatest Support 92 | 20 20 10 10 10 40 54 54 54 54 54 74 92 90 90 72 72 Greatest Overweight (x) 3 | . 2 3 . 1 1 . 1 1 1 1 1 1 . . . 1 Average Overweight (x) . | . . . . 1 . . . . . . . . . . . . Largest Inventory Capacity 15 | 5 5 5 5 5 5 15 15 15 15 15 15 15 15 15 15 15 Average Capacity 12 | 5 5 5 5 5 5 14 15 15 15 15 15 15 15 15 15 9 Most Carried 15 | . 1 5 5 5 5 11 14 15 15 15 15 15 14 13 15 15 Average Carried 10 | . . 4 4 4 4 9 12 14 14 15 14 13 13 12 13 9 Final Capacity 15 | 5 5 5 5 5 5 15 15 15 15 15 15 15 15 15 15 5 Final Carried 15 | . 1 5 5 5 5 11 14 15 15 15 15 14 13 12 14 4 Scrap Suit Usage (%) 75 | . . 25 100 100 90 100 95 99 100 100 99 96 64 . . . Parts Cannibalized 5 | . . . . . . 1 . . . . 1 2 1 . . . Class Distribution -------------------- 33% | Gunner 30% | Mutant 10% | Scavenger-Mutant 10% | Scrapper 8% | Skirmisher 3% | Scientist-Gunner Dominant Class ---------------- Mutant | -10/Materials Mutant | -10/Mines Scrapper | -10/Exiles Scrapper | -9/Mines Skirmisher | -8/Materials Skirmisher | -7/Factory Gunner | -7/Lower Caves Mutant | -7/Lower Caves Gunner | -7/Zion Gunner | -6/Proximity Caves Scavenger-Mutant | -6/Factory Scavenger-Mutant | -5/Factory Gunner | -5/Upper Caves Scientist-Gunner | -5/Upper Caves Gunner | -5/Zhirov Mutant | -4/Proximity Caves Resources | -11 -10 -10 -10 -9 -8 -7 -7 -7 -7 -6 -6 -5 -5 -5 -5 -4 ----------- Run | Yrd Mat Min Exi Min Mat Fac Low Low Zio Pro Fac Fac Upp Upp Zhi Pro Matter Collected 1218 | 264 147 60 . 30 95 32 44 . 10 30 100 171 77 38 60 60 Remotely 135 | 106 29 . . . . . . . . . . . . . . . Salvage Created 3882 | 69 401 49 . . 555 144 130 451 . 211 632 614 . . 405 221 Parts 219 | 2 35 6 . . 38 10 11 33 . 14 30 27 . . 2 11 Haulers Intercepted 3 | . 1 . . . . . . . . . 2 . . . . . Recyclers Shooed 3 | . 2 . . . . . . . . . . 1 . . . . Parts Field Recycled . | . . . . . . . . . . . . . . . . . Retrieved Matter . | . . . . . . . . . . . . . . . . . Parts Self-Destructed 69 | . . . . . . . 8 32 5 15 . . 2 3 1 3 Prevented 1 | . . . . . . . . . . 1 . . . . . . Parts Restored . | . . . . . . . . . . . . . . . . . Kills | -11 -10 -10 -10 -9 -8 -7 -7 -7 -7 -6 -6 -5 -5 -5 -5 -4 ------- Run | Yrd Mat Min Exi Min Mat Fac Low Low Zio Pro Fac Fac Upp Upp Zhi Pro Combat Hostiles Destroyed 78 | . 9 3 . . 12 2 2 12 . 8 9 11 . . . 10 Melee 5 | . . . . . . . . . . . 2 1 . . . 2 Guns 53 | . 7 3 . . 11 2 2 12 . 5 6 5 . . . . Cannons 2 | . . . . . 1 . . . . . . 1 . . . . AOE 16 | . 2 . . . . . . . . 2 . 4 . . . 8 Classes Destroyed 18 | 1 7 . . . 2 1 1 1 . 1 2 1 . . . 1 Worker 5 | . . . . . . . . . . . . 5 . . . . Builder 2 | . 1 . . . . . . . . . 1 . . . . . Tunneler 1 | . 1 . . . . . . . . . . . . . . . Hauler 3 | . 1 . . . . . . . . . 2 . . . . . Recycler 2 | 1 1 . . . . . . . . . . . . . . . Operator 1 | . 1 . . . . . . . . . . . . . . . Drone 2 | . . . . . . . . . . 2 . . . . . . Watcher 6 | . 3 . . . . 1 . . . . . 2 . . . . Swarmer 32 | . 6 3 . . 3 . . 8 . 3 2 . . . . 7 Cutter 2 | . . . . . . . . . . . 2 . . . . . Grunt 17 | . 3 . . . 3 . . 2 . 1 1 5 . . . 2 Duelist 1 | . . . . . . . . 1 . . . . . . . . Protector 1 | . . . . . . . . . . . . . . . . 1 Sentry 10 | . . . . . 5 1 . 1 . 1 1 1 . . . . Hunter 3 | . . . . . 1 . . . . . 1 1 . . . . Programmer 7 | . . . . . . 1 1 . . . 1 4 . . . . Heavy 1 | . . . . . . . . . . . 1 . . . . . Behemoth 2 | . . . . . . . 1 . . 1 . . . . . . Best Kill Streak 13 | 1 7 3 . . 4 1 1 5 . 3 3 13 . . . 8 Combat Bots Only 8 | . 4 3 . . 4 1 1 5 . 3 3 8 . . . 8 Max Kills in Single Turn 4 | 1 2 1 . . 1 1 1 1 . 1 1 3 . . . 4 Gunslinging . | . . . . . . . . . . . . . . . . . Exploded 4 | . 1 . . . . . . . . 1 . 3 . . . 4 Melee 1 | . . . . . . . . . . . 1 1 . . . 1 Uniques/NPCs Destroyed . | . . . . . . . . . . . . . . . . . Combat | -11 -10 -10 -10 -9 -8 -7 -7 -7 -7 -6 -6 -5 -5 -5 -5 -4 -------- Run | Yrd Mat Min Exi Min Mat Fac Low Low Zio Pro Fac Fac Upp Upp Zhi Pro Hostile Shots Fired 560 | . 39 29 . . 33 11 34 33 . 41 35 113 35 9 . 148 Missed 207 | . 9 5 . . 15 8 14 15 . 21 14 51 11 4 . 40 Hits 353 | . 30 24 . . 18 3 20 18 . 20 21 62 24 5 . 108 Melee 3 | . . . . . . . . . . . . . . . . 3 Projectile 350 | . 30 24 . . 18 3 20 18 . 20 21 62 24 5 . 105 AOE 2 | . . . . . . . . . . . 2 . . . . . Critical Strikes 11 | . 1 2 . . 1 1 . 1 . . 1 . . . . 4 Actively Blocked 1 | . . . . . . . . . . . . . . . . 1 Part Disruptions 1 | . . . . . . . . . . . . 1 . . . . Actively Blocked 1 | . . . . . . . . . . . . 1 . . . . Damage Taken 6152 | . 390 207 . . 281 32 316 292 . 241 478 1299 512 105 . 1999 Core 1257 | . 68 37 . . 29 6 . 43 . 73 . 73 97 . . 831 Absorbed by Shields . | . . . . . . . . . . . . . . . . . Redirected to Shielding 162 | . . . . . . . . . . . . . . . . 162 Regen/Repaired (Parts) 679 | . . . . . . 4 . . 643 . 2 20 10 . . . Core Remaining (%) 86 | 100 . . . 58 94 . . . . 82 100 . . . . . Volleys Fired 113 | 4 55 12 . . 2 5 . . . 3 5 13 2 . . 12 Largest 3 | 2 2 2 . . 1 1 . . . 1 1 3 3 . . 2 Hottest 244 | 60 112 112 . . 69 65 . . . . 44 244 244 . . 146 Shots Fired 385 | 8 79 16 . . 44 17 14 50 . 33 46 58 6 . . 14 Gun 340 | 8 79 16 . . 43 12 14 50 . 30 41 43 2 . . 2 Cannon 32 | . . . . . 1 5 . . . . 5 9 4 . . 8 Launcher 6 | . . . . . . . . . . . . 6 . . . . Special 7 | . . . . . . . . . . 3 . . . . . 4 Kinetic 69 | 4 60 . . . . . . . . . 5 . . . . . Thermal 291 | . 12 16 . . 43 17 14 50 . 30 41 52 6 . . 10 Explosive 13 | . . . . . . . . . . 3 . 6 . . . 4 Electromagnetic 12 | 4 7 . . . 1 . . . . . . . . . . . Robot Hit Streak 20 | 2 17 6 . . 20 19 9 4 . 5 8 8 8 . . 1 Robot Miss Streak 6 | 3 2 4 . . 1 4 1 4 . 5 4 2 . . . 6 Penetration Max . | . . . . . . . . . . . . . . . . . Secondary Targets 1 | . 1 . . . . . . . . . . . . . . . Max Gunslinging Chain 1 | . 1 . . . . . . . . . . . . . . . Autonomous 226 | . . . . . 42 12 14 50 . 30 41 37 . . . . Shots Hit Robots 281 | 3 54 9 . . 39 11 12 25 . 21 45 43 6 . 6 7 Core Hits 151 | 1 26 3 . . 12 4 5 16 . 12 15 34 2 . 4 17 Critical Kills . | . . . . . . . . . . . . . . . . . Critical Parts Destroyed . | . . . . . . . . . . . . . . . . . Critical Strikes 6 | . 2 . . . . . . . . 1 2 1 . . . . Burn 3 | . 2 . . . . . . . . . . 1 . . . . Sever 3 | . . . . . . . . . . 1 2 . . . . . Melee Attacks 26 | . . . . . . . . . . . 14 2 . . 6 4 Impact . | . . . . . . . . . . . . . . . . . Slashing 26 | . . . . . . . . . . . 14 2 . . 6 4 Piercing . | . . . . . . . . . . . . . . . . . Sneak Attacks 2 | . . . . . . . . . . . 2 . . . . . Combat Hostiles . | . . . . . . . . . . . . . . . . . Follow-up Attacks . | . . . . . . . . . . . . . . . . . Damage Inflicted 10809 | 35 896 129 . . 989 245 324 665 . 1174 1673 2202 181 . 606 1690 Guns 5414 | 35 531 129 . . 958 187 324 665 . 604 925 1008 48 . . . Cannons 540 | . . . . . 31 54 . . . . 55 222 122 . . 56 Explosions 3131 | . 357 . . . . . . . . 500 . 857 . . . 1417 Melee 1553 | . . . . . . . . . . . 693 82 . . 606 172 Ramming 56 | . 8 . . . . 4 . . . . . 33 11 . . . Kinetic 412 | 20 337 . . . . . . . . . 55 . . . . . Thermal 5509 | . 207 129 . . 958 241 324 665 . 604 925 1230 170 . . 56 Explosive 3055 | . 281 . . . . . . . . 500 . 857 . . . 1417 Electromagnetic 109 | 15 63 . . . 31 . . . . . . . . . . . Impact . | . . . . . . . . . . . . . . . . . Slashing 1668 | . . . . . . . . . . 70 693 82 . . 606 217 Piercing . | . . . . . . . . . . . . . . . . . Highest Corruption 2 | . . . . . . . . . . . . 2 2 2 . . Average Corruption 1 | . . . . . . . . . . . . 1 2 1 . . Corruption Purged 2 | . . . . . . . . . . . . . . 2 . . Corruption Blocked . | . . . . . . . . . . . . . . . . . Effects 9 | . . . . . . . . . . . . 3 3 3 . . Message Errors 3 | . . . . . . . . . . . . . 2 1 . . Matter Fused 2 | . . . . . . . . . . . . . . 2 . . Heat Flow Errors 1 | . . . . . . . . . . . . 1 . . . . Energy Discharges 1 | . . . . . . . . . . . . 1 . . . . Data Loss (minor) 2 | . . . . . . . . . . . . 1 1 . . . Overload Shots . | . . . . . . . . . . . . . . . . . Overflow Damage 381 | . 39 . . . . . . . . 29 64 . . . 185 64 Projectiles 11 | . . . . . . . . . . . . . . . . 11 Explosions 102 | . 39 . . . . . . . . 29 . . . . . 34 Melee 268 | . . . . . . . . . . . 64 . . . 185 19 Knockbacks . | . . . . . . . . . . . . . . . . . Impact . | . . . . . . . . . . . . . . . . . Kinetic . | . . . . . . . . . . . . . . . . . Secondary . | . . . . . . . . . . . . . . . . . Self-Inflicted Damage 121 | . 61 . . . . . . . . . . 60 . . . . Shots 2 | . 1 . . . . . . . . . . 1 . . . . Rammed . | . . . . . . . . . . . . . . . . . Targets Rammed 8 | . 1 . . . . 1 . . . . . 4 2 . . . Kicked 8 | . 1 . . . . 1 . . . . . 4 2 . . . Crushed . | . . . . . . . . . . . . . . . . . Highest Temperature 332 | 20 141 332 . . 1 . . . . . . 278 279 . . 326 Average Temperature 97 | 13 36 188 . . 1 . . . . . . 99 148 . . 120 Received Heat Transfer 1228 | . 123 9 . . 63 6 24 45 . 27 18 186 117 27 . 583 Effects 5 | . . 2 . . . . . . . . . . 1 . . 2 Energy Bleed 1 | . . . . . . . . . . . . . 1 . . . Interference 4 | . . 2 . . . . . . . . . . . . . 2 Siege Activations . | . . . . . . . . . . . . . . . . . Martial Activations . | . . . . . . . . . . . . . . . . . Shielding Activations . | . . . . . . . . . . . . . . . . . Robots Disrupted . | . . . . . . . . . . . . . . . . . Combat Hostiles . | . . . . . . . . . . . . . . . . . Robots Corrupted . | . . . . . . . . . . . . . . . . . Combat Hostiles . | . . . . . . . . . . . . . . . . . Parts Fried . | . . . . . . . . . . . . . . . . . Impact Corruptions . | . . . . . . . . . . . . . . . . . Robots Melted 1 | . . . . . . . . . . . 1 . . . . . Combat Hostiles 1 | . . . . . . . . . . . 1 . . . . . Parts Melted 14 | . . . . . 3 . . 1 . 2 6 2 . . . . Heat Transferred 7465 | . 581 333 . . 1258 296 370 851 . 740 1147 1567 248 . . 74 Parts Sabotaged . | . . . . . . . . . . . . . . . . . Parts Stolen . | . . . . . . . . . . . . . . . . . Parts Stripped . | . . . . . . . . . . . . . . . . . Power Chain Reactions 1 | . 1 . . . . . . . . . . . . . . . Alert | -11 -10 -10 -10 -9 -8 -7 -7 -7 -7 -6 -6 -5 -5 -5 -5 -4 ------- Run | Yrd Mat Min Exi Min Mat Fac Low Low Zio Pro Fac Fac Upp Upp Zhi Pro Maximum Alert Level 1 | . . . . . . . . . . . . 1 . . . . Low Security (%) 93 | 100 100 100 . 100 100 100 . . . . 100 63 . . . . Level 1 6 | . . . . . . . . . . . . 36 . . . . Level 2 . | . . . . . . . . . . . . . . . . . Level 3 . | . . . . . . . . . . . . . . . . . Level 4 . | . . . . . . . . . . . . . . . . . Level 5 . | . . . . . . . . . . . . . . . . . High Security . | . . . . . . . . . . . . . . . . . Max Security . | . . . . . . . . . . . . . . . . . Peak Influence 269 | 5 150 50 . . 157 63 . . . . 150 269 . . . . Initial 150 | . . . . . . 63 . . . . 150 42 . . . . Average 51 | . 51 11 . . 77 17 . . . . 69 90 . . . . Influence Increases 2784 | 5 296 85 . . 327 87 75 365 . 150 444 395 210 60 15 270 Destroy 0b10 Robot/C 1500 | . 180 60 . . 240 40 40 240 . 120 180 220 . . . 180 Destroy 0b10 Robot/NC 130 | 5 40 . . . . 5 . . . 10 15 35 . . 15 5 Destroy Leader 336 | . 38 10 . . 80 22 20 20 . 20 62 54 . . . 10 Successful Hack 14 | . . . . . . 2 . . . . . 12 . . . . Disable Machine 30 | . 15 . . . . . . . . . . 15 . . . . Destroy Structure 69 | . 8 . . . 7 3 . . . . 7 44 . . . . Advance Influence 150 | . . . . . . . . . . . 150 . . . . . Lose Combat Pursuer 555 | . 15 15 . . . 15 15 105 . . 30 15 210 60 . 75 Influence Decreases 2629 | 5 296 85 . . 188 226 53 138 249 150 357 241 220 225 81 115 Entered New Map 576 | . . . . . . 76 . 5 249 . . 45 90 45 66 . Time Decay 1918 | 5 276 65 . . 178 150 53 133 . 150 357 166 110 170 15 90 Lost Part 135 | . 20 20 . . 10 . . . . . . 30 20 10 . 25 Squads Dispatched 13 | . 1 . . . 1 1 . . . . 4 4 . 1 . 1 Investigation 1 | . . . . . 1 . . . . . . . . . . . Extermination 4 | . . . . . . 1 . . . . 1 2 . . . . Reinforcement 6 | . 1 . . . . . . . . . 3 2 . . . . Assault 2 | . . . . . . . . . . . . . . 1 . 1 Garrison . | . . . . . . . . . . . . . . . . . Intercept . | . . . . . . . . . . . . . . . . . Searches Triggered . | . . . . . . . . . . . . . . . . . Construction Impeded 1 | . . . . . . . . . . . . 1 . . . . Haulers Reinforced . | . . . . . . . . . . . . . . . . . Active Scanning Responses . | . . . . . . . . . . . . . . . . . Cargo Convoy Interrupts 1 | . . . . . . . . . . . . 1 . . . . Stealth | -11 -10 -10 -10 -9 -8 -7 -7 -7 -7 -6 -6 -5 -5 -5 -5 -4 --------- Run | Yrd Mat Min Exi Min Mat Fac Low Low Zio Pro Fac Fac Upp Upp Zhi Pro Distress Signals 9 | . 1 . . . . 1 . . . . 2 4 . . . 1 Communications Jammed . | . . . . . . . . . . . . . . . . . Distress Signals . | . . . . . . . . . . . . . . . . . Times Spotted 158 | . 16 5 . . 13 5 3 16 . 8 17 32 14 5 . 24 Peak Tracking Total 14 | . 5 3 . . 5 2 1 11 . 3 4 14 7 5 . 9 Tactical Retreats 21 | . 1 1 . . . 1 1 2 . . 1 1 6 3 . 4 Traps | -11 -10 -10 -10 -9 -8 -7 -7 -7 -7 -6 -6 -5 -5 -5 -5 -4 ------- Run | Yrd Mat Min Exi Min Mat Fac Low Low Zio Pro Fac Fac Upp Upp Zhi Pro Traps Triggered 5 | . 3 . . . 1 . . . . . . 1 . . . . Indirectly . | . . . . . . . . . . . . . . . . . Trap Hack Attempts . | . . . . . . . . . . . . . . . . . Triggered . | . . . . . . . . . . . . . . . . . Disarmed . | . . . . . . . . . . . . . . . . . Reprogrammed . | . . . . . . . . . . . . . . . . . Reused . | . . . . . . . . . . . . . . . . . Traps Extracted . | . . . . . . . . . . . . . . . . . Installed . | . . . . . . . . . . . . . . . . . Triggered . | . . . . . . . . . . . . . . . . . Machines | -11 -10 -10 -10 -9 -8 -7 -7 -7 -7 -6 -6 -5 -5 -5 -5 -4 ---------- Run | Yrd Mat Min Exi Min Mat Fac Low Low Zio Pro Fac Fac Upp Upp Zhi Pro Machines Disabled 2 | . 1 . . . . . . . . . . 1 . . . . Max in Single Turn 1 | . 1 . . . . . . . . . . 1 . . . . Machines Repaired . | . . . . . . . . . . . . . . . . . Machines Dismantled . | . . . . . . . . . . . . . . . . . Machines Sabotaged . | . . . . . . . . . . . . . . . . . Overloaded Fab Kills . | . . . . . . . . . . . . . . . . . Hacking | -11 -10 -10 -10 -9 -8 -7 -7 -7 -7 -6 -6 -5 -5 -5 -5 -4 --------- Run | Yrd Mat Min Exi Min Mat Fac Low Low Zio Pro Fac Fac Upp Upp Zhi Pro Machines Accessed 11 | . 2 . 2 . . 1 . 1 . . . 2 . . 3 . Terminals 1 | . 1 . . . . . . . . . . . . . . . Fabricators . | . . . . . . . . . . . . . . . . . Repair Stations . | . . . . . . . . . . . . . . . . . Recycling Units 1 | . 1 . . . . . . . . . . . . . . . Scanalyzers 3 | . . . . . . 1 . . . . . 2 . . . . Garrison Access . | . . . . . . . . . . . . . . . . . Total Hacks 31 | . 3 . 5 . . 4 . 1 . . . 8 . . 10 . Successful 22 | . 1 . 5 . . 2 . 1 . . . 3 . . 10 . Failed 9 | . 2 . . . . 2 . . . . . 5 . . . . Catastrophic 1 | . . . . . . . . . . . . 1 . . . . Database Lockouts . | . . . . . . . . . . . . . . . . . Manual 4 | . 3 . 1 . . . . . . . . . . . . . Terminals 2 | . 2 . . . . . . . . . . . . . . . Fabricators . | . . . . . . . . . . . . . . . . . Repair Stations . | . . . . . . . . . . . . . . . . . Recycling Units 1 | . 1 . . . . . . . . . . . . . . . Scanalyzers 12 | . . . . . . 4 . . . . . 8 . . . . Garrison Access . | . . . . . . . . . . . . . . . . . Terminal Hacks 16 | . . . 5 . . . . 1 . . . . . . 10 . Record 10 | . . . 4 . . . . . . . . . . . 6 . Robot Analysis 4 | . . . . . . . . . . . . . . . 4 . Open Door 1 | . . . . . . . . 1 . . . . . . . . Proto ID Catalog 1 | . . . 1 . . . . . . . . . . . . . Fabricator Hacks . | . . . . . . . . . . . . . . . . . Repair Station Hacks . | . . . . . . . . . . . . . . . . . Recycling Unit Hacks . | . . . . . . . . . . . . . . . . . Scanalyzer 5 | . . . . . . 2 . . . . . 3 . . . . Retrieve Study 5 | . . . . . . 2 . . . . . 3 . . . . Garrison Access Hacks . | . . . . . . . . . . . . . . . . . Unauthorized Hacks 1 | . 1 . . . . . . . . . . . . . . . Terminals . | . . . . . . . . . . . . . . . . . Fabricators . | . . . . . . . . . . . . . . . . . Repair Stations . | . . . . . . . . . . . . . . . . . Recycling Units 1 | . 1 . . . . . . . . . . . . . . . Reject 1 | . 1 . . . . . . . . . . . . . . . Scanalyzers . | . . . . . . . . . . . . . . . . . Garrison Access . | . . . . . . . . . . . . . . . . . Data Cores Recovered 1 | . 1 . . . . . . . . . . . . . . . Used 1 | . 1 . . . . . . . . . . . . . . . Hacking Detections 4 | . 1 . . . . 1 . . . . . 2 . . . . Full Trace Events 1 | . 1 . . . . . . . . . . . . . . . Feedback Events . | . . . . . . . . . . . . . . . . . Feedback Blocked . | . . . . . . . . . . . . . . . . . Robot Schematics Acquired 3 | . . . . . . . . . 3 . . . . . . . Robots Built . | . . . . . . . . . . . . . . . . . Authchips . | . . . . . . . . . . . . . . . . . Time . | . . . . . . . . . . . . . . . . . Total Robot Build Rating . | . . . . . . . . . . . . . . . . . Part Schematics Acquired 14 | . . . . . . . . . 14 . . . . . . . Parts Built . | . . . . . . . . . . . . . . . . . Authchips . | . . . . . . . . . . . . . . . . . Time . | . . . . . . . . . . . . . . . . . Total Part Build Rating . | . . . . . . . . . . . . . . . . . Part Studies Acquired 5 | . . . . . . 2 . . . . . 3 . . . . Parts Repaired . | . . . . . . . . . . . . . . . . . Time . | . . . . . . . . . . . . . . . . . Parts Recycled . | . . . . . . . . . . . . . . . . . Recycled Matter . | . . . . . . . . . . . . . . . . . Retrieved Matter . | . . . . . . . . . . . . . . . . . Retrieved Components . | . . . . . . . . . . . . . . . . . Parts Scanalyzed . | . . . . . . . . . . . . . . . . . Part Schematics Acquired . | . . . . . . . . . . . . . . . . . Parts Damaged . | . . . . . . . . . . . . . . . . . Bothacking | -11 -10 -10 -10 -9 -8 -7 -7 -7 -7 -6 -6 -5 -5 -5 -5 -4 ------------ Run | Yrd Mat Min Exi Min Mat Fac Low Low Zio Pro Fac Fac Upp Upp Zhi Pro Used RIF Installer . | . . . . . . . . . . . . . . . . . Robots Hacked . | . . . . . . . . . . . . . . . . . Non-combat . | . . . . . . . . . . . . . . . . . Combat . | . . . . . . . . . . . . . . . . . Robot Hacks Applied . | . . . . . . . . . . . . . . . . . Relay Couplers Released . | . . . . . . . . . . . . . . . . . Fabnet Peak Effective % . | . . . . . . . . . . . . . . . . . Robots Rewired . | . . . . . . . . . . . . . . . . . Allies Hacked . | . . . . . . . . . . . . . . . . . Hacks Repelled . | . . . . . . . . . . . . . . . . . Allies | -11 -10 -10 -10 -9 -8 -7 -7 -7 -7 -6 -6 -5 -5 -5 -5 -4 -------- Run | Yrd Mat Min Exi Min Mat Fac Low Low Zio Pro Fac Fac Upp Upp Zhi Pro Total Allies . | . . . . . . . . . . . . . . . . . Largest Group . | . . . . . . . . . . . . . . . . . Highest-Rated Group . | . . . . . . . . . . . . . . . . . Highest-Rated Ally . | . . . . . . . . . . . . . . . . . Total Orders . | . . . . . . . . . . . . . . . . . Ally Attacks . | . . . . . . . . . . . . . . . . . Total Damage . | . . . . . . . . . . . . . . . . . Kills . | . . . . . . . . . . . . . . . . . Allies Corrupted . | . . . . . . . . . . . . . . . . . Allies Melted . | . . . . . . . . . . . . . . . . . Intel | -11 -10 -10 -10 -9 -8 -7 -7 -7 -7 -6 -6 -5 -5 -5 -5 -4 ------- Run | Yrd Mat Min Exi Min Mat Fac Low Low Zio Pro Fac Fac Upp Upp Zhi Pro Active Infowar (turns) 655 | . 653 2 . . . . . . . . . . . . . . Optics 68 | . 68 . . . . . . . . . . . . . . . Structural 652 | . 650 2 . . . . . . . . . . . . . . Robot Analysis Total 4 | . . . . . . . . . . . . . . . 4 . Derelict Logs Recovered 10 | . . 2 . 2 . . . 1 3 1 . . 1 . . . Drone Launches . | . . . . . . . . . . . . . . . . . Drone Recoveries . | . . . . . . . . . . . . . . . . . Exploration | -11 -10 -10 -10 -9 -8 -7 -7 -7 -7 -6 -6 -5 -5 -5 -5 -4 ------------- Run | Yrd Mat Min Exi Min Mat Fac Low Low Zio Pro Fac Fac Upp Upp Zhi Pro Turns Passed 9468 | 66 868 296 306 599 411 432 511 521 1512 939 918 834 235 344 205 471 Spaces Moved 6709 | 40 601 482 252 302 182 301 313 369 843 571 657 456 210 326 166 638 Core 463 | 2 3 2 . . . . . . . . . . . . . 456 Treads 40 | . . . . . 40 . . . . . . . . . . . Legs 5738 | 38 598 67 252 302 142 301 313 369 843 571 657 456 210 326 166 127 Wheels 55 | . . . . . . . . . . . . . . . . 55 Hover . | . . . . . . . . . . . . . . . . . Flight 413 | . . 413 . . . . . . . . . . . . . . Fastest Speed 37 | 50 100 37 120 190 120 120 120 120 120 120 120 105 105 105 105 50 Average Speed 125 | 116 119 52 120 190 135 120 151 139 177 162 123 119 105 105 105 66 Slowest Speed 200 | 120 150 200 120 190 190 120 190 190 190 190 190 190 105 105 105 175 Overloaded Moves . | . . . . . . . . . . . . . . . . . Propulsion Burnouts . | . . . . . . . . . . . . . . . . . Robots Hopped 3 | . . 3 . . . . . . . . . . . . . . Potential Cave-ins . | . . . . . . . . . . . . . . . . . Cave-ins Triggered . | . . . . . . . . . . . . . . . . . Teleports 1 | . . . . . . . . . . . . . . . . 1 Exploration Rate (%) 52 | 3 90 94 61 77 19 8 51 48 83 74 24 18 52 64 60 61 Regions Visited 16 Branch Regions 11 Pre-discovered Areas 12 | . . 2 1 1 . . . 1 2 1 . . 1 . 3 . Known Exits Taken 1 | . . . 1 . . . . . . . . . . . . . Unknown Exits Taken 15 | 1 1 1 . 1 1 1 1 1 1 1 1 1 1 1 1 . Scrap Searched 13 | . . 1 . 1 . . . . 3 2 . . 1 2 . 3 Spaces Dug . | . . . . . . . . . . . . . . . . . Terrain Destroyed 160 | . 12 . . . 7 3 3 16 . 57 6 23 . . . 33 Melee . | . . . . . . . . . . . . . . . . . Projectile 46 | . . . . . 7 3 3 16 . 6 6 3 . . . 2 AOE 114 | . 12 . . . . . . . . 51 . 20 . . . 31 Terrain Rammed . | . . . . . . . . . . . . . . . . . Walls Destroyed . | . . . . . . . . . . . . . . . . . Machines Disabled . | . . . . . . . . . . . . . . . . . Actions | -11 -10 -10 -10 -9 -8 -7 -7 -7 -7 -6 -6 -5 -5 -5 -5 -4 --------- Run | Yrd Mat Min Exi Min Mat Fac Low Low Zio Pro Fac Fac Upp Upp Zhi Pro Total 7538 | 49 675 504 256 329 344 366 350 376 858 578 734 722 220 327 186 664 Wait 524 | . 3 3 . 23 140 46 34 2 1 . 45 221 6 . . . Move 6687 | 39 600 475 251 301 181 300 312 368 842 570 656 455 209 325 165 638 Hop 3 | . . 3 . . . . . . . . . . . . . . Pick Up 26 | . . 2 2 2 2 6 1 1 7 . . . . . 3 . Fast Attach 56 | 6 12 4 . . 7 3 1 . 1 2 5 6 . 1 5 3 Attach 15 | . . . 1 1 2 1 . . . . 1 4 1 1 . 3 Detach 9 | . . 2 . . . 1 1 1 . . . 2 . . . 2 Swap 20 | . 1 1 . . 2 1 1 . . 1 3 7 . . 2 1 Drop 50 | . 3 2 2 2 8 2 . 4 7 2 5 8 . . 4 1 Fire 113 | 4 55 12 . . 2 5 . . . 3 5 13 2 . . 12 Melee 26 | . . . . . . . . . . . 14 2 . . 6 4 Ram . | . . . . . . . . . . . . . . . . . Kick 8 | . 1 . . . . 1 . . . . . 4 2 . . . Crush . | . . . . . . . . . . . . . . . . . Escape Stasis . | . . . . . . . . . . . . . . . . . Rewire 1 | . . . . . . . . . . . . . . . 1 . Trap . | . . . . . . . . . . . . . . . . . Miscellaneous . | . . . . . . . . . . . . . . . . . Route ------- -11/Scrapyard -10/Materials (discovered 4 exits: [*Mat x3] / [*Min]) -10/Mines (discovered 3 exits: [*Mat x2] / *Exi) -10/Exiles (discovered 2 exits: *Min x2) -9/Mines -8/Materials -7/Factory -7/Lower Caves -7/Lower Caves -7/Zion -6/Proximity Caves -6/Factory (discovered 2 exits: *Fac x2) -5/Factory -5/Upper Caves -5/Upper Caves (discovered 2 exits: [*Fac] / *Zhi) -5/Zhirov -4/Proximity Caves History --------- Turn | Location | Event 19 | -11/Scrapyard | Discovered new exit (range 15) 67 | -11/Scrapyard | Entered Materials 306 | -10/Materials | Build established: Mutant 367 | -10/Materials | Discovered new exit (range 16) 428 | -10/Materials | Discovered new exit (range 7) 555 | -10/Materials | Discovered new exit (range 13) 726 | -10/Materials | Discovered new exit (range 11) 935 | -10/Materials | Entered Mines 959 | -10/Mines | Met a Derelict bent on vengeance 985 | -10/Mines | Lost 3 parts (2n1u) 993 | -10/Mines | Found a Scrap Suit stashed away for nefarious purposes 998 | -10/Mines | Discovered new exit (range 13) 1028 | -10/Mines | Learned location of Storage (-8) 1080 | -10/Mines | Discovered new exit (range 11) 1157 | -10/Mines | Found Scrap Suit 1227 | -10/Mines | Deemed a non-threat by the Exiles lab entrance 1227 | -10/Mines | Discovered new exit (range 5) 1231 | -10/Mines | Entered Exiles 1232 | -10/Exiles | Identified exit to Mines 1275 | -10/Exiles | Met 8R-AWN 1293 | -10/Exiles | Met EX-HEX 1347 | -10/Exiles | Met EX-BIN 1361 | -10/Exiles | Aligned with FarCom system 1362 | -10/Exiles | Given EX-Vault access code 1390 | -10/Exiles | Opened EX-Vault 1405 | -10/Exiles | Found AWS/Thermal 1430 | -10/Exiles | Warned to stay clear of 0b10 Research branches 1442 | -10/Exiles | Build established: Scrapper 1464 | -10/Exiles | Met EX-DEC 1469 | -10/Exiles | Learned location of Zion (-7) 1537 | -10/Exiles | Left Exiles lab with AWS/Thermal 1537 | -10/Exiles | Entered Mines 1546 | -9/Mines | Learned Materials stockpile data 2026 | -9/Mines | Discovered new exit (range 13) 2136 | -9/Mines | Entered Materials 2136 | -8/Materials | Evolved 4 slots: Propulsion x1, Utility x2, Weapon x1 2527 | -8/Materials | Discovered new exit (range 10) 2540 | -8/Materials | Build established: Skirmisher 2547 | -8/Materials | Entered Factory 2547 | -7/Factory | Evolved 2 slots: Utility x2 2946 | -7/Factory | Discovered new exit (range 9) 2979 | -7/Factory | Entered Lower Caves 3084 | -7/Lower Caves | Spotted B-75 Beast 3200 | -7/Lower Caves | Destroyed B-75 Beast 3266 | -7/Lower Caves | Build established: Gunner 3462 | -7/Lower Caves | Discovered new exit (range 15) 3490 | -7/Lower Caves | Entered another Lower Caves area 3557 | -7/Lower Caves | Found Prototype Device 4004 | -7/Lower Caves | Discovered new exit (range 6) 4011 | -7/Lower Caves | Entered Zion 4049 | -7/Zion | Build established: Mutant 4096 | -7/Zion | Learned Factory trap positions 4135 | -7/Zion | Learned location of Quarantine (-3) 4151 | -7/Zion | Learned Factory emergency access door positions 4187 | -7/Zion | Found Prototype Special Weapon 4187 | -7/Zion | Identified RU-N14's Throwing Claymores 4191 | -7/Zion | Found RU-N14's Throwing Claymores 4194 | -7/Zion | Found RU-N14's Throwing Claymores 4197 | -7/Zion | Found RU-N14's Throwing Claymores 4444 | -7/Zion | Learned Factory terminal intel 4485 | -7/Zion | Build established: Gunner 4517 | -7/Zion | Learned Factory emergency access door positions 5342 | -7/Zion | Visited the Megawrench Repair Shop 5342 | -7/Zion | Megawrench repaired 9 parts 5494 | -7/Zion | Discovered new exit (range 15) 5523 | -7/Zion | Entered Proximity Caves 5526 | -6/Proximity Caves | Spotter reported a threat 5946 | -6/Proximity Caves | Attracted the attention of an 0b10 checkpoint 6166 | -6/Proximity Caves | Spotted B-75 Beast 6225 | -6/Proximity Caves | Destroyed B-75 Beast 6430 | -6/Proximity Caves | Discovered new exit (range 5) 6462 | -6/Proximity Caves | Entered Factory 6462 | -6/Factory | Evolved 2 slots: Propulsion x1, Utility x1 6463 | -6/Factory | Loaded intel: 80 trap records 6465 | -6/Factory | Loaded intel: 28 terminal locations 6520 | -6/Factory | Discovered new exit (range 12) 6524 | -6/Factory | Build established: Mutant 7222 | -6/Factory | Build established: Scavenger-Mutant 7345 | -6/Factory | Discovered new exit (range 14) 7380 | -6/Factory | Entered another Factory area 7380 | -5/Factory | Evolved 2 slots: Power x1, Propulsion x1 7940 | -5/Factory | Destroyed 8 combat bots 7945 | -5/Factory | Lost 3 parts (1p2n) 8031 | -5/Factory | Discovered new exit (range 4) 8057 | -5/Factory | AWS/Thermal suddenly broke down 8185 | -5/Factory | Cargo convoy interrupted 8214 | -5/Factory | Entered Upper Caves 8229 | -5/Upper Caves | Learned location of Warlord (-4) 8294 | -5/Upper Caves | Found DCF Scrap (11 items) 8316 | -5/Upper Caves | Attracted the attention of an 0b10 checkpoint 8349 | -5/Upper Caves | Attracted the attention of an 0b10 base 8437 | -5/Upper Caves | Discovered new exit (range 14) 8449 | -5/Upper Caves | Entered another Upper Caves area 8452 | -5/Upper Caves | Discovered new exit (range 11) 8712 | -5/Upper Caves | Attracted the attention of an 0b10 outpost 8787 | -5/Upper Caves | Discovered new exit (range 7) 8793 | -5/Upper Caves | Entered Zhirov 8793 | -5/Zhirov | Discovered new exit (range 3) 8812 | -5/Zhirov | Met Zhirov 8832 | -5/Zhirov | Learned location of Testing (-2) 8832 | -5/Zhirov | Learned location of Command (-1) 8840 | -5/Zhirov | Zhirov requested help retrieving the SGEMP Prototype 8856 | -5/Zhirov | Found Alien Artifact 8856 | -5/Zhirov | Identified Integrated Reactor 8856 | -5/Zhirov | Installed Integrated Reactor, increased core energy generation (+10) 8874 | -5/Zhirov | Found Alien Artifact 8998 | -5/Zhirov | Entered Proximity Caves 9000 | -4/Proximity Caves | Spotter reported a threat 9001 | -4/Proximity Caves | Spotter reported a threat 9049 | -4/Proximity Caves | Spotted B-86 Titan 9119 | -4/Proximity Caves | Spotter reported a threat 9142 | -4/Proximity Caves | Attracted the attention of an 0b10 outpost 9159 | -4/Proximity Caves | Spotter reported a threat 9198 | -4/Proximity Caves | Lost 3 parts (3n) 9212 | -4/Proximity Caves | Spotter reported a threat 9213 | -4/Proximity Caves | Core integrity fell below 50% 9230 | -4/Proximity Caves | Released all parts (4) 9231 | -4/Proximity Caves | Identified Transdimensional Reconstructor 9231 | -4/Proximity Caves | Warped through subspace 9261 | -4/Proximity Caves | Lost 8 parts (2p2n3u1w) 9303 | -4/Proximity Caves | Core integrity fell below 20% 9366 | -4/Proximity Caves | Build established: Mutant 9469 | -4/Proximity Caves | Destroyed by G-73 Enforcer with Phase Gun Last Messages --------------- 09311_ Penetrated by Slug. 09352_ Acquired 10 matter. 09381_ Searching scrap... 09381_ Found Imp. Melee Analysis Suite. 09381_ Found 57 Matter. 09382_ Acquired Imp. Melee Analysis Suite. 09383_ Acquired 10 matter. 09390_ Searching scrap... 09390_ Found Greatsword. 09390_ Found 30 Matter. 09394_ N-01 Spotter sends out distress signal. 09461_ S-27 Virus destroyed. 09461_ Destroyed VTOL Module. 09461_ S-27 Virus destroyed. 09465_ Lgt. Nuclear Core fries itself beyond repair. 09467_ RU-N14's Throwing Claymores expended. 09467_ Destroyed Microactuators. 09467_ S-27 Virus destroyed. 09467_ G-67 Veteran destroyed. Map ----- +----------------------------------------------------+ | ### # " #???## ##?####??### | | #?## ##" #??## #####??## ###?# ## | | # #??# # #??# ##??????# #?# " | | # #??# #### ##???##?# ### #= | | # #??# ### ### ##?# #?## #" | | # #?## % ## #?## ## #??## | | # #?# #??# ##??## # | | # #?## ##??### ##?## ## #" | | #?## ## ######## #?# ## ## | | #### ### ## ## ## | | #?# ##?## ## ## #### | | ### ##??######### ## ###### #?# | | # #??????????# ## ##???# #?#### | | # #??????????# ### ####???# #????# | | # #??????????# ####??????## #????# | | ## ## ##??????????## ##??############ ##???## | | ?########????????????## #### #????####???## | | ??????????????????????## ## #????????????# | | ???????????????????????# #????????????## | | ???????????????????????# #?????????????# | | ???????????????????????# ##????##??????## | | ???????????????????????# #### ##??????# | | ???????????????????????# ###????? | | ???????????????????????# ###### | | ???????????????????????## ##????# ######?# | | ????????????????????????#@ #????# ######??????? | | ????????????????????????# #???# ##???????????? | | ???????????????????????? #??## ##????????##### | | ???????????????????????# #??###?????????# | | ???????????????????????# ?????????????# | | ???????????????????????### ????????????# | | ?????????????????????????## #??????????# | | ??????????????????????????? #?????????# | | ??????????????????????????? #?????????## | | ??????????????????????????? ##??????????#### | | ??????????????????????????? l ##??????????????# | | ??????????????????????????? g % #???????????????? | | ??????????????????????????? *%=##???????????????? | | ??????????????????????????? *% #????????????????? | | ???????????????????????????? ???????????????????? | | ?????????????????????????????????????????????????? | | ?????????????????????????????????????????????????? | | ?????????????????????????????????????????????????? | | ?????????????????????????????????????????????????? | | ?????????????????????????????????????????????????? | | ?????????????????????????????????????????????????? | | ?????????????????????????????????????????????????? | | ?????????????????????????????????????????????????? | | ?????????????????????????????????????????????????? | | ?????????????????????????????????????????????????? | +----------------------------------------------------+ Best States ------------- Heat Dissipation 61 Energy Generation 37 Energy Capacity 340 Matter Stores 300 Matter Capacity 300 Sight Range 18 Terrain Scan Density 10 Base Temperature (-) 200 EM Shielding 2 Armor Coverage 225 Utility Shielding 90 Evasion (%) 62 Targeting Accuracy 5 Melee Accuracy 6 Core Analysis 6 Recoil Reduction 2 Matter Filtering 50 Salvage Targeting 1 Item Schematics ----------------- Arm. Huge Wheel | -7/Zion | Archive Flexi-carbon Leg | -7/Zion | Archive Imp. Target Analyzer | -7/Zion | Archive Flak Gun | -7/Zion | Archive Imp. Trap Scanner | -7/Zion | Archive System Restoration Module | -7/Zion | Archive Imp. Launcher Guidance Computer | -7/Zion | Archive Imp. Hardlight Generator | -7/Zion | Archive Imp. Melee Analysis Suite | -7/Zion | Archive Adv. Terrain Scanner | -7/Zion | Archive EM Disruption Field | -7/Zion | Archive Lgt. Fission Core | -7/Zion | Archive Weapon Cycler | -7/Zion | Archive Adv. Cooling System | -7/Zion | Archive Robot Schematics ------------------ T-07 Excavator | -7/Zion | Archive S-27 Virus | -7/Zion | Archive A-02 Transporter | -7/Zion | Archive Fabricated ------------ Nothing Repaired ---------- Nothing Studied --------- Hvy. Ion Cannon | -7/Factory | Hacked Hvy. Rocket Launcher | -7/Factory | Hacked Imp. Carbon-fiber Leg | -5/Factory | Hacked Plasma Cutter | -5/Factory | Hacked Mic. Fission Core | -5/Factory | Hacked Alien Tech Used ----------------- Integrated Reactor Transdimensional Reconstructor Achievements -------------- Drive-By Fancy Inventory Jackpot Look Less Dangerous Next Time Sixth Sense Challenges ------------ None Game ------ Seed LatentShiftAmplifier Manual? 0 Play Time 01:17:07 Cumulative 170.2 hours Start 2025.10.28 @ 01:39:38 End 2025.10.28 @ 19:44:01 Sessions 5 Manual Loads 0 Difficulty Rogue Special Mode None Game No. 137 Rogue 125 Adventurer 12 Explorer 0 Win Type - Total 2 Types 2/0/0/0/0/0/0/0/0/0 Lore% 53 Gallery% 56 Achievement% 37 Wizard Run 0 Options --------- Layout 2 ASCII 0 Keyboard 0 Movement Numpad Keybinds 0 Fullscreen 1 Font 24/Smallcaps Map View 50x44 Zoom Use 0% Tactical HUD 1 Map Filters NONE Filters NONE Steam 1 RUN: 664116f1-eae0-4a1c-acdb-a4aa86e67d5d